fUSD/lending_fUSD_20240525
["ID","MTS","AMOUNT","RATE_DAILY","PERIOD"]
[327929255,1716659432623,-4821.74,0.00019452,2]
[327929256,1716659432633,-499.99,0.00019452,2]
[327929257,1716659432642,-259.66,0.00019452,2]
[327929258,1716659432651,-303.65,0.00019452,2]
[327929259,1716659432660,-1554.49,0.00019452,2]
[327929260,1716659432669,-1801.29,0.00019452,2]
[327929261,1716659432678,-150.99,0.00019726,2]
[327929262,1716659432687,-443.16,0.00019726,2]
[327929263,1716659432696,-1050.0,0.00021,2]
[327929264,1716659432705,-150.0,0.00021627,2]
[327929265,1716659432714,-151.842,0.00021627,2]
[327929266,1716659432723,-150.0,0.00021627,2]
[327929267,1716659432732,-151.242,0.00021627,2]
[327929268,1716659432741,-245.678,0.00021627,2]
[327929269,1716659432750,-151.555,0.00021627,2]
[327929270,1716659432759,-150.519,0.00021627,2]
[327929271,1716659432768,-154.688,0.00021627,2]
[327929272,1716659432778,-464.43,0.00022051,2]
[327929273,1716659432788,-154.36462274,0.00022118,2]
[327929274,1716659432797,-150.87239784,0.0002229,2]
[327929275,1716659432807,-151.83882975,0.00022374,2]
[327929276,1716659432817,-293.68830408,0.00022406,2]
[327929277,1716659432826,-151.83882975,0.00022466,2]
[327929278,1716659432836,-153.39087144,0.00022545,2]
[327929279,1716659432845,-1100.0,0.00023,2]
[327929280,1716659432854,-200.60483213,0.00023343,2]
[327929281,1716659432864,-153.39087144,0.00023402,2]
[327929282,1716659432873,-2000.0,0.00023614,2]
[327929283,1716659432882,-194.33,0.00023733,2]
[327929284,1716659432892,-600.0,0.00023738,2]
[327929285,1716659432901,-151.83882975,0.00023793,2]
[327929286,1716659432910,-400.0,0.0002383,2]
[327929287,1716659432919,-153.39087144,0.00023867,2]
[327929288,1716659432928,-250.0,0.00023896,2]
[327929289,1716659432938,-153.76513485,0.00023897,2]
[327929290,1716659432947,-250.0,0.00023906,2]
[327929291,1716659432956,-16175.87,0.00023908,2]
[327929292,1716659432966,-500.0,0.0002391,2]
[327929293,1716659432975,-357.73,0.00023936,2]
[327929294,1716659432984,-250.0,0.00023937,2]
[327929296,1716659432994,-401.05,0.00023974,2]
[327929297,1716659433003,-206.66,0.00023984,2]
[327929299,1716659433012,-2129.21,0.00023991,2]
[327929301,1716659433022,-153.39087144,0.00024006,2]
[327929303,1716659433031,-150.0,0.00024048,2]
[327929304,1716659433041,-153.39087144,0.00024072,2]
[327929306,1716659433051,-188.18,0.00024162,2]
[327929308,1716659433060,-153.76513485,0.00024246,2]
[327929309,1716659433069,-186.01041921,0.00024257,2]
[327929311,1716659433078,-464.43,0.00024315,2]
[327929313,1716659433087,-255.68,0.00024379,2]
[327929314,1716659433097,-150.0,0.00024471,2]
[327929315,1716659433106,-177.68,0.00024522,2]
[327929316,1716659433115,-150.0,0.00024591,2]
[327929317,1716659433124,-153.60299022,0.0002464,2]
[327929318,1716659433133,-151.23335645,0.00024668,2]
[327929319,1716659433142,-150.0,0.00024697,2]
[327929320,1716659433152,-1000.0,0.000247,2]
[327929321,1716659433164,-150.0,0.0002473,2]
[327929322,1716659433175,-150.0,0.00024797,2]
[327929323,1716659433184,-150.0,0.0002487,2]
[327929324,1716659433193,-908.00531194,0.00024888,2]
[327929325,1716659433203,-1044.31301003,0.00024889,2]
[327929326,1716659433214,-257.24940323,0.00024889,2]
[327929327,1716659433224,-445.6637425,0.00024889,2]
[327929328,1716659433234,-155.23067312,0.00024889,2]
[327929329,1716659433247,-2000.0,0.00024889,2]
[327929330,1716659433258,-200.0,0.00024889,2]
[327929331,1716659433267,-2000.0,0.00024889,2]
[327929332,1716659433276,-200.0,0.00024889,2]
[327929333,1716659433287,-2000.0,0.00024889,2]
[327929334,1716659433296,-200.0,0.00024889,2]
[327929335,1716659433305,-236.88932,0.00024889,2]
[327929336,1716659433316,-406.07524138,0.00024896,2]
[327929337,1716659433327,-2946.60548514,0.00024896,2]
[327929338,1716659433338,-564.47813874,0.00024896,2]
[327929339,1716659433348,-4494.18375395,0.00024896,2]
[327929340,1716659433358,-641.78473751,0.00024897,2]
[327929341,1716659433368,-150.0,0.00024898,2]
[327929342,1716659433378,-150.0,0.00024905,2]
[327929343,1716659433387,-170.0,0.00024917,2]
[327929344,1716659433396,-150.0,0.00024933,2]
[327929345,1716659433407,-150.0,0.00024941,2]
[327929346,1716659433417,-207.0,0.0002498,2]
[327929347,1716659433426,-200.74261385,0.00025,2]
[327929348,1716659433435,-216.5869652,0.00025,2]
[327929349,1716659433446,-1150.0,0.00025,2]
[327929350,1716659433455,-151.83882975,0.00025134,2]
[327929351,1716659433464,-2000.0,0.00025138,2]
[327929352,1716659433473,-200.0,0.00025138,2]
[327929353,1716659433482,-2000.0,0.00025138,2]
[327929354,1716659433491,-200.0,0.00025138,2]
[327929355,1716659433500,-2000.0,0.00025138,2]
[327929356,1716659433510,-200.0,0.00025138,2]
[327929357,1716659433519,-153.39087144,0.00025176,2]
[327929358,1716659433528,-150.0,0.00025188,2]
[327929359,1716659433538,-150.0,0.00025209,2]
[327929360,1716659433547,-150.0,0.00025271,2]
[327929361,1716659433557,-2000.0,0.00025389,2]
[327929362,1716659433567,-200.0,0.00025389,2]
[327929363,1716659433576,-2000.0,0.00025389,2]
[327929364,1716659433585,-200.0,0.00025389,2]
[327929365,1716659433595,-1641.40399088,0.00025389,2]
[327929366,1716659433604,-200.0,0.00025389,2]
[327929367,1716659433613,-150.0,0.0002542,2]
[327929368,1716659433622,-207.0,0.0002548,2]
[327929369,1716659433631,-150.0,0.00025511,2]
[327929370,1716659433640,-150.0,0.00025629,2]
[327929371,1716659433649,-2000.0,0.00025643,2]
[327929372,1716659433659,-200.0,0.00025643,2]
[327929373,1716659433668,-2000.0,0.00025643,2]
[327929374,1716659433677,-200.0,0.00025643,2]
[327929375,1716659433686,-200.0,0.00025643,2]
[327929376,1716659433695,-150.0,0.0002572,2]
[327929377,1716659433704,-150.0,0.00025766,2]
[327929378,1716659433714,-150.0,0.0002577,2]
[327929379,1716659433723,-150.0,0.00025778,2]
[327929380,1716659433734,-2000.0,0.000259,2]
[327929381,1716659433743,-200.0,0.000259,2]
[327929382,1716659433753,-2000.0,0.000259,2]
[327929383,1716659433762,-200.0,0.000259,2]
[327929384,1716659433771,-150.0,0.00025913,2]
[327929385,1716659433781,-150.0,0.00025915,2]
[327929386,1716659433791,-150.0,0.00025962,2]
[327929387,1716659433800,-207.0,0.0002599,2]
[327929388,1716659433809,-150.0,0.00026025,2]
[327929389,1716659433819,-153.39087144,0.00026069,2]
[327929390,1716659433828,-153.39087144,0.0002615,2]
[327929391,1716659433837,-150.0,0.0002618,2]
[327929392,1716659433846,-152.82,0.00026274,2]
[327929393,1716659433855,-153.39087144,0.00026374,2]
[327929394,1716659433864,-200.0,0.00026417,2]
[327929395,1716659433873,-153.39087144,0.0002642,2]
[327929396,1716659433882,-150.0,0.00026432,2]
[327929397,1716659433891,-207.0,0.0002649,2]
[327929398,1716659433900,-464.43,0.00026579,2]
[327929399,1716659433910,-600.0,0.00026706,2]
[327929400,1716659433919,-401.05,0.00026714,2]
[327929401,1716659433928,-150.0,0.00026776,2]
[327929402,1716659433938,-150.0,0.00026785,2]
[327929403,1716659434114,-2000.0,0.000268,2]
[327929404,1716659434123,-150.0,0.00026804,2]
[327929405,1716659434132,-400.0,0.00026809,2]
[327929406,1716659434142,-3149.14687988,0.00026818,2]
[327929407,1716659434151,-150.0,0.00026819,2]
[327929408,1716659434160,-150.0,0.0002689,2]
[327929409,1716659434174,-1000.0,0.00026897,2]
[327929410,1716659434183,-2500.0,0.00026897,2]
[327929411,1716659434193,-56629.62605221,0.000269,2]
[327929412,1716659434203,-150.0,0.00026923,2]
[327929413,1716659434213,-150.0,0.00026978,2]
[327929414,1716659434222,-150.0,0.00026979,2]
[327929415,1716659434231,-207.0,0.0002699,2]
[327929416,1716659434240,-93638.7438,0.00026997,2]
[327929417,1716659434251,-921.29,0.00027,2]
[327929418,1716659434262,-783.86,0.00027,2]
[327929419,1716659434272,-1200.0,0.00027,2]
[327929420,1716659434281,-153.39087144,0.00027094,2]
[327929421,1716659434291,-1000.0,0.00027097,2]
[327929422,1716659434300,-10975.0346,0.00027097,2]
[327929423,1716659434309,-500.0,0.00027097,2]
[327929424,1716659434321,-44875.89926599,0.00027097,2]
[327929432,1716659438625,-277.39290203,0.00027097,2]
[327929433,1716659442210,-1113.88593955,0.00027097,2]
[327929441,1716659443558,-4501.73082517,0.00027097,2]
[327929445,1716659443661,-164.67758827,0.00026997,2]
[327929446,1716659443671,-198.10241175,0.00027097,2]
[327929447,1716659443682,-2696.94585753,0.00027097,2]
[327929500,1716660633128,-175.92,0.00013973,2]
[327929501,1716660633137,-153.72,0.00013973,2]
[327929502,1716660633147,-746.78320543,0.00019193,2]
[327929503,1716660633155,-1000.0,0.00019708,2]
[327929504,1716660633164,-200.0,0.00019725,2]
[327929505,1716660633173,-1000.0,0.00020402,2]
[327929506,1716660633183,-150.99,0.00020402,2]
[327929507,1716660633191,-769.56,0.00020402,2]
[327929508,1716660633201,-1000.0,0.00020907,2]
[327929509,1716660633210,-1050.0,0.00021,2]
[327929510,1716660633219,-1319.949902,0.00021361,2]
[327929511,1716660633228,-1000.0,0.00021469,2]
[327929512,1716660633237,-1115.85,0.00021469,2]
[327929513,1716660633247,-300.0,0.00021527,2]
[327929514,1716660633256,-499.99,0.00021527,2]
[327929515,1716660633266,-1797.1,0.00021527,2]
[327929516,1716660633276,-1097.24,0.00021527,2]
[327929517,1716660633285,-46.34239257,0.00021627,2]
[327929518,1716660633352,-104.41360743,0.00021627,2]
[327929519,1716660633362,-151.447,0.00021627,2]
[327929520,1716660633371,-160.145,0.00021627,2]
[327929521,1716660633380,-150.0,0.00021848,2]
[327929522,1716660633390,-150.0,0.00021848,2]
[327929523,1716660633399,-150.0,0.00021848,2]
[327929524,1716660633408,-150.2,0.00021848,2]
[327929525,1716660633418,-1000.0,0.00022252,2]
[327929526,1716660633428,-394.76,0.00022381,2]
[327929527,1716660633437,-151.23335645,0.00022938,2]
[327929528,1716660633446,-1100.0,0.00023,2]
[327929529,1716660633456,-153.39087145,0.0002307,2]
[327929530,1716660633465,-153.72,0.00023435,2]
[327929531,1716660633474,-298.1,0.00023679,2]
[327929532,1716660633483,-640.0,0.00023679,2]
[327929533,1716660633492,-153.39087145,0.00023856,2]
[327929534,1716660633502,-151.83882975,0.00023948,2]
[327929535,1716660633511,-167.99941387,0.00024181,2]
[327929536,1716660633521,-360.0,0.00024191,2]
[327929537,1716660633530,-199.52,0.00024239,2]
[327929538,1716660633540,-250.0,0.00024244,2]
[327929539,1716660633553,-2000.0,0.00024258,2]
[327929540,1716660633563,-250.0,0.000243,2]
[327929541,1716660633572,-150.0,0.00024303,2]
[327929542,1716660633583,-438.37,0.00024311,2]
[327929543,1716660633592,-250.0,0.00024329,2]
[327929544,1716660633602,-161.94,0.00024337,2]
[327929545,1716660633611,-153.39087145,0.00024494,2]
[327929546,1716660633621,-394.76,0.00024645,2]
[327929547,1716660633632,-153.76513485,0.00024953,2]
[327929548,1716660633641,-1150.0,0.00025,2]
[327929549,1716660633651,-155.08702744,0.00025014,2]
[327929550,1716660633660,-150.0,0.00025098,2]
[327929551,1716660633670,-150.0,0.00025114,2]
[327929552,1716660633679,-150.0,0.00025374,2]
[327929553,1716660633688,-1000.0,0.00025572,2]
[327929554,1716660633697,-150.0,0.00025982,2]
[327929555,1716660633706,-150.0,0.00026004,2]
[327929556,1716660633716,-150.0,0.00026084,2]
[327929557,1716660633725,-150.0,0.00026091,2]
[327929558,1716660633735,-150.0,0.00026183,2]
[327929559,1716660633744,-150.0,0.00026192,2]
[327929560,1716660633753,-150.0,0.00026192,2]
[327929561,1716660633762,-150.0,0.00026192,2]
[327929562,1716660633771,-150.0,0.00026192,2]
[327929563,1716660633780,-150.0,0.0002621,2]
[327929564,1716660633790,-150.0,0.00026276,2]
[327929565,1716660633799,-205.790097,0.00026283,2]
[327929566,1716660633808,-150.0,0.00026353,2]
[327929567,1716660633816,-150.0,0.00026404,2]
[327929568,1716660633826,-150.0,0.00026557,2]
[327929569,1716660633835,-150.0,0.00026593,2]
[327929570,1716660633844,-150.0,0.00026609,2]
[327929571,1716660633855,-640.0,0.00026638,2]
[327929572,1716660633864,-150.0,0.0002664,2]
[327929573,1716660633874,-150.0,0.00026704,2]
[327929574,1716660633883,-150.0,0.00026727,2]
[327929575,1716660633892,-150.0,0.00026736,2]
[327929576,1716660633901,-150.0,0.0002674,2]
[327929577,1716660633911,-150.0,0.00026749,2]
[327929578,1716660633920,-150.0,0.00026767,2]
[327929579,1716660633929,-150.0,0.00026784,2]
[327929580,1716660633939,-153.39087145,0.00026804,2]
[327929581,1716660633948,-153.60299022,0.00026826,2]
[327929582,1716660633957,-394.76,0.00026909,2]
[327929583,1716660633966,-153.39087145,0.00026915,2]
[327929584,1716660633975,-150.0,0.00026927,2]
[327929585,1716660633985,-150.0,0.00026986,2]
[327929586,1716660633994,-1386.55437292,0.00026993,2]
[327929587,1716660634004,-364.49648891,0.00026994,2]
[327929588,1716660634013,-53809.64367091,0.00026995,2]
[327929589,1716660634022,-2834.23219182,0.00026995,2]
[327929590,1716660634031,-3952.7523,0.00026995,2]
[327929591,1716660634041,-210.8378,0.00026995,2]
[327929592,1716660634050,-164.67758827,0.00026997,2]
[327929593,1716660634059,-1200.0,0.00027,2]
[327929594,1716660634068,-500.0,0.00027,2]
[327929595,1716660634077,-500.0,0.00027,2]
[327929596,1716660634086,-500.0,0.00027,2]
[327929597,1716660634095,-353.0,0.00027,2]
[327929598,1716660634105,-500.0,0.00027,10]
[327929599,1716660634114,-4855.58,0.00027062,2]
[327929600,1716660634123,-200.0,0.0002708,2]
[327929601,1716660634132,-200.0,0.0002708,2]
[327929602,1716660634141,-150.0,0.00027084,2]
[327929603,1716660634150,-182477.87292405,0.00027095,2]
[327929604,1716660634159,-406.78617881,0.00027095,2]
[327929605,1716660634168,-5013.30928153,0.00027096,2]
[327929606,1716660634178,-605.33687463,0.00027096,2]
[327929607,1716660634188,-1044.31301003,0.00027097,2]
[327929608,1716660634198,-257.24940323,0.00027097,2]
[327929609,1716660634207,-445.6637425,0.00027097,2]
[327929610,1716660634216,-336.83465564,0.00027097,7]
[327929611,1716660634225,-628.30009709,0.00027097,2]
[327929612,1716660634235,-37497.0168183,0.00027097,2]
[327929613,1716660634244,-176.01367452,0.00027097,2]
[327929614,1716660634252,-174.77860484,0.00027097,2]
[327929615,1716660634261,-2056.31915181,0.00027097,2]
[327929616,1716660634270,-165.42920419,0.00027097,2]
[327929617,1716660634279,-197.40777,0.00027097,2]
[327929618,1716660634288,-196.86001026,0.00027097,2]
[327929619,1716660634297,-331.00048248,0.00027097,2]
[327929620,1716660634308,-170.48163449,0.00027097,2]
[327929621,1716660634319,-150.0,0.00027105,2]
[327929622,1716660634331,-150.0,0.00027161,2]
[327929623,1716660634340,-151.63,0.00027187,2]
[327929624,1716660634351,-151.63,0.00027187,2]
[327929625,1716660634360,-151.63,0.00027187,2]
[327929626,1716660634370,-6228.18742137,0.00027196,2]
[327929627,1716660634379,-418.34669064,0.00027196,2]
[327929628,1716660634388,-680.0,0.00027197,2]
[327929629,1716660634398,-116903.50531749,0.00027197,2]
[327929630,1716660634418,-3489.05565659,0.00027197,2]
[327929636,1716660637818,-15786.25,0.00027197,2]
[327929646,1716660641005,-403.55791642,0.00027196,2]
[327929647,1716660641015,-370.10281679,0.00027197,2]
[327929648,1716660641026,-2119.16111,0.00027197,2]
[327929649,1716660641652,-500.0,0.00027197,2]
[327929650,1716660641883,-1242.08852631,0.00027197,2]
[327929651,1716660641894,-340.78144659,0.00027197,2]
[327929652,1716660641906,-309.12639055,0.00027197,2]
[327929653,1716660641917,-3362.0,0.00027197,2]
[327929654,1716660641928,-854.9999999,0.00027197,2]
[327929655,1716660641939,-2418.21045662,0.00027197,2]
[327929656,1716660641950,-669.96345158,0.00027197,2]
[327929659,1716660642784,-24014.26934797,0.00027197,2]
[327929661,1716660643527,-806.1100004,0.00027197,2]
[327929662,1716660643540,-686.000002,0.00027197,2]
[327929663,1716660643557,-1385.20522068,0.00027197,2]
[327929665,1716660643569,-36866.7949047,0.00027197,2]
[327929667,1716660643580,-38728.82947359,0.00027197,2]
[327929668,1716660643590,-562.0,0.00027197,2]
[327929669,1716660643599,-62898.70214501,0.00027197,2]
[327929670,1716660643612,-20583.45037417,0.00027197,2]
[327929671,1716660643623,-10311.09784793,0.00027197,2]
[327929672,1716660643637,-2534.02923427,0.00027197,2]
[327929673,1716660643649,-10079.32115718,0.00027197,2]
[327929674,1716660643661,-3096.48244863,0.00027197,2]
[327929675,1716660643672,-814.22625206,0.00027197,2]
[327929676,1716660643684,-856.79557589,0.00027197,2]
[327929677,1716660643695,-6803.3,0.00027197,2]
[327929682,1716660645830,-269.03861094,0.00027196,2]
[327929683,1716660645840,-113.45138906,0.00027197,2]
[327929684,1716660645852,-693.40384,0.00027197,2]
[327929685,1716660646090,-824.59977352,0.00027197,2]
[327929686,1716660646102,-34574.31948407,0.00027197,2]
[327929687,1716660646195,-507.0,0.00027197,2]
[327929688,1716660646204,-1071.36830522,0.00027197,2]
[327929698,1716660668258,188.18,0.00026298,120]
[327929703,1716661612123,-152.82,0.00013973,2]
[327929704,1716661612143,-59.45314136,0.0002,2]
[327929706,1716661832008,-1044.31301003,0.0002,2]
[327929707,1716661832018,-7259.34047041,0.0002,2]
[327929708,1716661832029,-6926.10347187,0.0002,2]
[327929709,1716661832041,-13370.7242083,0.0002,2]
[327929712,1716661832120,-626.85191041,0.0002,2]
[327929713,1716661832132,-9313.99675731,0.0002,2]
[327929714,1716661832141,-152.96549235,0.00022034,2]
[327929715,1716661832150,-155.0,0.00022207,2]
[327929716,1716661832160,-151.83882976,0.00022208,2]
[327929717,1716661832169,-335.54,0.00022448,2]
[327929718,1716661832178,-499.99,0.00022549,2]
[327929719,1716661832187,-151.83882976,0.00022794,2]
[327929720,1716661832197,-163.0,0.00022827,2]
[327929721,1716661832207,-154.88236009,0.00023089,2]
[327929722,1716661832215,-165.51724431,0.00023604,2]
[327929723,1716661832225,-3814.0,0.00023868,2]
[327929724,1716661832234,-212.27192449,0.00024114,2]
[327929725,1716661832246,-186.01041922,0.00024136,2]
[327929726,1716661832255,-196.52,0.00024374,2]
[327929727,1716661832265,-150.0,0.00024448,2]
[327929728,1716661832275,-2000.0,0.0002446,3]
[327929729,1716661832289,-2000.0,0.00024502,2]
[327929730,1716661832298,-161.94,0.00024504,2]
[327929731,1716661832308,-288.0,0.00024518,2]
[327929732,1716661832318,-250.0,0.00024629,2]
[327929733,1716661832327,-156.52,0.00024701,2]
[327929734,1716661832337,-335.54,0.00024712,2]
[327929736,1716661832346,-153.76513485,0.00024869,2]
[327929738,1716661832355,-1518.28522627,0.000249,2]
[327929739,1716661832365,-248.41,0.00024944,2]
[327929740,1716661832376,-712.0,0.00024977,2]
[327929741,1716661832582,-160.68183302,0.00025046,2]
[327929743,1716661832591,-150.0,0.00025187,2]
[327929745,1716661832601,-150.0,0.00025205,2]
[327929747,1716661832611,-30146.823,0.00025216,2]
[327929749,1716661832620,-150.0,0.00025221,2]
[327929750,1716661832630,-153.39087145,0.00025254,2]
[327929751,1716661832639,-156.52,0.00025345,2]
[327929752,1716661832649,-150.0,0.00025495,2]
[327929753,1716661832658,-150.0,0.00025539,2]
[327929754,1716661832668,-150.0,0.00025653,2]
[327929755,1716661832677,-150.0,0.00025656,2]
[327929756,1716661832688,-150.0,0.00025657,2]
[327929757,1716661832697,-150.0,0.00025984,2]
[327929758,1716661832706,-156.52,0.00025988,2]
[327929759,1716661832716,-153.39087145,0.00026007,2]
[327929760,1716661832725,-151.83882976,0.00026007,2]
[327929761,1716661832735,-150.0,0.00026016,2]
[327929762,1716661832744,-150.0,0.00026024,2]
[327929763,1716661832754,-150.0,0.00026128,2]
[327929764,1716661832763,-150.0,0.00026131,2]
[327929765,1716661832772,-150.0,0.00026137,2]
[327929766,1716661832781,-150.0,0.00026219,2]
[327929767,1716661832790,-150.0,0.00026225,2]
[327929768,1716661832799,-155.25920548,0.00026297,2]
[327929769,1716661832808,-336.83465564,0.00026298,7]
[327929770,1716661832818,-628.30009709,0.00026298,2]
[327929771,1716661832827,-445.6637425,0.00026298,2]
[327929772,1716661832836,-257.24940323,0.00026298,2]
[327929773,1716661832846,-150.0,0.00026304,2]
[327929774,1716661832855,-150.0,0.0002634,2]
[327929775,1716661832864,-150.0,0.00026415,2]
[327929776,1716661832873,-150.0,0.00026691,2]
[327929777,1716661832883,-210.8378,0.00026695,2]
[327929778,1716661832897,-150.0,0.00026722,2]
[327929779,1716661832906,-150.0,0.00026727,2]
[327929780,1716661832915,-2942.71596852,0.00026795,2]
[327929781,1716661832924,-157.58144662,0.00026795,2]
[327929782,1716661832935,-48428.67930381,0.00026795,2]
[327929783,1716661832945,-328.84159494,0.00026795,2]
[327929784,1716661832955,-925.4028204,0.00026799,2]
[327929785,1716661832967,-4000.91340436,0.000268,2]
[327929786,1716661832979,-4427.30363913,0.000268,2]
[327929787,1716661833055,-250.0,0.00024305,2]
[327929788,1716661833064,-675.4028204,0.000268,2]
[327929789,1716661833075,-635.97483763,0.000268,2]
[327929790,1716661833086,-1042.16772,0.000268,2]
[327929791,1716661833098,-386.97857912,0.000268,2]
[327929792,1716661833226,-299.99,0.000268,2]
[327929793,1716661833237,-3718.83553169,0.000268,2]
[327929794,1716661833248,-2877.57706656,0.000268,2]
[327929801,1716661841003,-617.6023691,0.000268,2]
[327929803,1716661841014,-1501.69106232,0.000268,2]
[327929804,1716661841026,-668.67499971,0.000268,2]
[327929805,1716661842109,-503.83918824,0.000268,2]
[327929806,1716661843706,-244825.43364291,0.000268,2]
[327929807,1716661843718,-650.96828781,0.000268,2]
[327929808,1716661843730,-536.49285145,0.000268,2]
[327929809,1716661843742,-38675.86195442,0.000268,2]
[327929813,1716661844203,-39570.9488039,0.000268,2]
[327929814,1716661844213,-253.1663,0.00026895,2]
[327929815,1716661844224,-150.0,0.00026905,2]
[327929816,1716661844234,-153.60299023,0.00026925,2]
[327929817,1716661844243,-200.0,0.0002693,2]
[327929818,1716661844253,-200.0,0.0002693,2]
[327929819,1716661844262,-196.86001026,0.00026944,2]
[327929820,1716661844271,-150.0,0.00026961,2]
[327929821,1716661844281,-335.54,0.00026976,2]
[327929822,1716661844290,-200.0,0.00026978,2]
[327929823,1716661844299,-175.40736349,0.00026993,2]
[327929824,1716661844309,-155.19292883,0.00026993,2]
[327929825,1716661844318,-308.52408703,0.00026993,2]
[327929826,1716661844327,-155.48717577,0.00026993,2]
[327929827,1716661844337,-155.60155931,0.00026993,2]
[327929828,1716661844346,-222.76486744,0.00026994,2]
[327929829,1716661844356,-53565.2655,0.00026995,2]
[327929830,1716661844365,-150.0,0.00027044,2]
[327929831,1716661844375,-155.24919301,0.00027051,2]
[327929832,1716661844384,-150.0,0.00027053,2]
[327929833,1716661844394,-150.0,0.00027078,2]
[327929834,1716661844403,-150.0,0.00027083,2]
[327929835,1716661844413,-150.0,0.00027096,2]
[327929836,1716661844423,-172.9257153,0.00027097,2]
[327929837,1716661844432,-174.77860483,0.00027097,2]
[327929838,1716661844442,-2284.20749774,0.00027097,2]
[327929839,1716661844452,-150.0,0.000271,5]
[327929840,1716661844462,-150.0,0.00027147,2]
[327929841,1716661844472,-5161.3670503,0.00027186,2]
[327929842,1716661844482,-26426.5945377,0.00027186,2]
[327929843,1716661844491,-151.59,0.00027187,2]
[327929844,1716661844501,-151.59,0.00027187,2]
[327929845,1716661844510,-1028.1409355,0.00027187,2]
[327929846,1716661844520,-150.0,0.0002719,2]
[327929847,1716661844529,-151.59,0.0002719,2]
[327929848,1716661844539,-474.38317278,0.00027195,2]
[327929849,1716661844549,-8772.99108123,0.00027195,2]
[327929850,1716661844560,-1914.45113675,0.00027196,2]
[327929851,1716661844569,-269.03861095,0.00027196,2]
[327929852,1716661844579,-1093.52382414,0.00027196,10]
[327929853,1716661844588,-500.0,0.00027196,2]
[327929854,1716661844597,-285.74684437,0.00027196,2]
[327929855,1716661844607,-454.58721055,0.00027196,2]
[327929856,1716661844617,-552.0,0.00027197,2]
[327929857,1716661844626,-126436.8984903,0.00027197,2]
[327929858,1716661844636,-165.0,0.00027197,2]
[327929859,1716661844645,-378559.62508479,0.00027197,2]
[327929860,1716661844658,-1765.648,0.00027197,2]
[327929861,1716661844670,-3787.27100006,0.00027197,2]
[327929862,1716661844682,-1017.05868281,0.00027197,2]
[327929865,1716662458343,178.87,0.00012219,2]
[327929866,1716662542871,549.65090229,0.00012219,2]
[327929867,1716662560886,387.15585479,0.00012219,2]
[327929868,1716662767465,355.03,0.00012576,2]
[327929874,1716663032419,-1573.97528166,0.00013602,2]
[327929875,1716663032429,-648.0,0.00013603,2]
[327929876,1716663032438,-803.0,0.00013604,2]
[327929877,1716663032448,-2830.69290525,0.00013944,2]
[327929878,1716663032460,-166.69709475,0.00013944,2]
[327929879,1716663032469,-4472.55,0.00013986,2]
[327929880,1716663032478,-46953.32,0.00013997,2]
[327929881,1716663032488,-769.6,0.00014006,2]
[327929882,1716663032497,-2000.0,0.00014044,3]
[327929883,1716663032506,-250.0,0.00014093,2]
[327929884,1716663032516,-200.0,0.00014191,2]
[327929885,1716663032525,-325.35,0.00014232,2]
[327929886,1716663032534,-322.09,0.00014313,2]
[327929887,1716663032663,-500.0,0.00014357,2]
[327929888,1716663032708,-215.32,0.00014386,2]
[327929889,1716663032718,-1091.01,0.00014395,2]
[327929890,1716663032727,-10419.56,0.00014395,2]
[327929891,1716663032737,-509.29,0.00014414,2]
[327929892,1716663032746,-2056.8,0.00014443,2]
[327929893,1716663032756,-226.02,0.00014493,2]